bitfinex-derivatives/quotes_BTCF0:USTF0_20250406
["timestamp","ask_amount","ask_price","bid_price","bid_amount"]
[1743965498981,0.3608,78878.0,78862.0,0.3608]
[1743965499175,0.1862,78877.0,78863.0,0.1834]
[1743965499375,0.05337334,78892.0,78870.0,0.3608]
[1743965499677,0.1862,78891.0,78881.0,0.3608]
[1743965499877,0.36094357,78906.0,78888.0,0.3608]
[1743965500082,0.1862,78899.0,78889.0,0.1834]
[1743965500283,0.1,78900.0,78889.0,1.39526818]
[1743965500483,0.3608,78890.0,78889.0,0.85666818]
[1743965500688,1.68615,78905.0,78889.0,0.85666818]
[1743965500880,0.005,78892.0,78889.0,0.85666818]
[1743965501078,0.005,78892.0,78890.0,0.3763]
[1743965501378,0.36094357,78906.0,78891.0,0.3608]
[1743965501574,0.00019014,78899.0,78892.0,0.00012186]
[1743965501971,0.00014357,78906.0,78898.0,0.3608]
[1743965502176,0.00076,78906.0,78905.0,0.3608]
[1743965502378,0.3608,78922.0,78905.0,0.3608]
[1743965502379,0.3608,78915.0,78905.0,0.71]
[1743965502686,0.186,78914.0,78907.0,0.3608]
[1743965502885,0.56616,78914.0,78907.0,1.0908]
[1743965503075,0.35775,78907.0,78892.0,0.00012186]
[1743965503274,0.3792,78906.0,78903.0,0.00019014]
[1743965503475,0.3792,78906.0,78905.0,0.001]
[1743965503684,0.00514452,78915.0,78905.0,0.001]
[1743965503982,0.00014452,78915.0,78910.0,0.3608]
[1743965504182,0.005,78914.0,78911.0,0.12904149]
[1743965504481,0.005,78914.0,78911.0,0.64590969]
[1743965504677,0.005,78914.0,78911.0,0.3272682]
[1743965504880,0.005,78914.0,78912.0,0.31632665]
[1743965505080,0.005,78914.0,78912.0,0.31646215]
[1743965505381,0.3608,78925.0,78913.0,0.19077646]
[1743965505685,0.3608,78941.0,78919.0,0.3608]
[1743965505873,0.0025336,78939.0,78934.0,0.3608]
[1743965506073,0.3608,78948.0,78935.0,0.2138111]
[1743965506272,0.379,78959.0,78943.0,0.3608]
[1743965506473,0.379,78959.0,78944.0,0.21394155]
[1743965506674,0.00019002,78955.0,78945.0,0.0170111]
[1743965506875,0.00019002,78955.0,78951.0,0.3608]
[1743965507075,0.3608,78972.0,78951.0,0.3778111]
[1743965507270,0.379,78973.0,78968.0,0.3608]
[1743965507475,0.1976,78971.0,78969.0,0.0170111]
[1743965507678,0.00076,78971.0,78970.0,0.0170111]
[1743965507879,0.00012054,78979.0,78970.0,0.21467707]
[1743965508082,0.3608,79021.0,78978.0,0.3608]
[1743965508377,0.00012429,78982.0,78981.0,0.3608]
[1743965508573,0.1976,78999.0,78981.0,0.3784511]
[1743965508888,0.1976,78999.0,78982.0,0.34402342]
[1743965509090,0.3608,78992.0,78983.0,0.0170111]
[1743965509282,0.00124,78988.0,78984.0,0.0170111]
[1743965509478,0.3798,78984.0,78958.0,0.3608]
[1743965509783,0.25617,78968.0,78958.0,0.35813599]
[1743965509975,0.35775,78959.0,78958.0,0.00064]
[1743965510180,0.73859001,78959.0,78945.0,0.1906]
[1743965510380,0.35775,78943.0,78932.0,0.3608]
[1743965510575,0.1814,78942.0,78933.0,0.00013383]
[1743965510782,0.3608,78939.0,78933.0,0.31680953]
[1743965510986,0.1814,78938.0,78933.0,0.31680953]
[1743965511190,0.25617,78937.0,78933.0,0.31680953]
[1743965511386,1.59531001,78937.0,78933.0,0.31680953]
[1743965511586,0.25617,78931.0,78916.0,0.3608]
[1743965511886,0.00096001,78931.0,78930.0,0.3608]
[1743965512184,0.00096001,78931.0,78930.0,0.73]
[1743965512492,0.3608,78949.0,78930.0,1.56341801]
[1743965512678,0.3608,78952.0,78937.0,0.3608]
[1743965512878,0.1814,78951.0,78937.0,1.0208]
[1743965513182,0.3641,78976.0,78959.0,0.002]
[1743965513378,0.3608894,78960.0,78959.0,0.77]
[1743965513583,8.94e-05,78960.0,78959.0,0.96120638]
[1743965513981,8.94e-05,78960.0,78959.0,1.08787845]
[1743965515186,0.0007694,78960.0,78959.0,0.67949604]
[1743965515380,0.3612,78988.0,78959.0,0.96667847]
[1743965515694,0.36184,78988.0,78978.0,0.3608]
[1743965515893,0.36184,78988.0,78979.0,0.1971]
[1743965516094,0.00104,78988.0,78987.0,0.3608]
[1743965516389,0.1025,79000.0,78987.0,0.00077663]
[1743965516587,0.10314,79000.0,78988.0,0.3608]
[1743965516892,0.10314,79000.0,78989.0,0.1971]
[1743965517096,0.10314,79000.0,78989.0,1.03801962]
[1743965517586,0.10314,79000.0,78990.0,0.12659109]
[1743965517791,0.10314,79000.0,78990.0,0.92727109]
[1743965517991,0.3608,78991.0,78990.0,0.92727109]
[1743965518293,0.36144,78991.0,78990.0,0.92727109]
[1743965518489,0.36144,78991.0,78990.0,1.11643267]
[1743965519391,0.36344,78991.0,78990.0,0.97307416]
[1743965520090,0.00264,78991.0,78990.0,0.97307416]
[1743965520288,0.002,78991.0,78990.0,1.16797416]
[1743965520491,0.7426,78991.0,78990.0,0.97307416]
[1743965520686,0.35775,78988.0,78980.0,0.00019002]
[1743965520881,0.71855,78981.0,78941.0,0.3608]
[1743965521093,0.25617,78966.0,78942.0,0.1959]
[1743965521292,0.5438,78965.0,78942.0,0.3904]
[1743965521491,1.5063,78965.0,78964.0,0.33459419]
[1743965521692,0.35775,78960.0,78942.0,0.1945]
[1743965521892,0.3608,78945.0,78943.0,9.761e-05]
[1743965522089,0.00084,78945.0,78943.0,0.19015061]
[1743965522399,1.49971,78944.0,78943.0,1e-08]
[1743965522585,1.50075001,78944.0,78918.0,0.3608]
[1743965522790,0.61697,78935.0,78918.0,0.3608]
[1743965522990,0.00124001,78935.0,78927.0,0.75063349]
[1743965523292,0.3608,78939.0,78928.0,0.46188605]
[1743965523491,0.1886,78948.0,78943.0,0.002]
[1743965523693,0.00088001,78948.0,78943.0,0.782]
[1743965523895,0.00011687,78964.0,78945.0,0.3608]
[1743965524094,0.00011687,78964.0,78953.0,0.002]
[1743965524296,0.3608,78956.0,78953.0,0.602]
[1743965524492,0.3763,78955.0,78954.0,0.19004186]
[1743965524689,0.37996,78954.0,78944.0,0.00015363]
[1743965524998,0.81971,78928.0,78923.0,0.192]
[1743965525192,0.3608,78924.0,78922.0,0.002]
[1743965525390,0.61662288,78923.0,78909.0,0.12864149]
[1743965525591,0.3608,78919.0,78915.0,0.00019002]
[1743965525791,0.1807,78918.0,78916.0,0.00014249]
[1743965525992,0.00076,78918.0,78916.0,0.19135782]
[1743965526187,0.00018991,78924.0,78917.0,0.1841]
[1743965526397,0.00090991,78924.0,78917.0,0.18494]
[1743965526599,0.00190991,78924.0,78922.0,0.004]
[1743965526791,0.71196,78923.0,78922.0,0.00476]
[1743965526992,0.05775,78916.0,78881.0,0.1811]
[1743965527209,0.43592288,78909.0,78881.0,0.1811]
[1743965527499,0.79672288,78904.0,78883.0,0.1841]
[1743965527692,1.10045288,78904.0,78878.0,0.3608]
[1743965527894,0.41855,78885.0,78878.0,0.36148]
[1743965528096,0.3805,78884.0,78883.0,0.00019002]
[1743965528304,0.05775,78872.0,78844.0,0.1841]
[1743965528603,0.37817288,78856.0,78855.0,0.00072]
[1743965528793,0.43700288,78856.0,78838.0,0.67333977]
[1743965528995,0.79672288,78853.0,78838.0,0.67333977]
[1743965529302,0.43592288,78839.0,78838.0,0.67401977]
[1743965529597,0.77079,78839.0,78838.0,0.67437429]
[1743965529897,1.50976288,78839.0,78838.0,0.99116655]
[1743965530501,1.65976288,78839.0,78838.0,0.35411935]
[1743965530693,1.65976288,78839.0,78838.0,0.35343935]
[1743965531086,1.51204782,78839.0,78838.0,0.35343935]
[1743965531286,1.50976288,78839.0,78838.0,0.35343935]
[1743965531492,0.05775,78832.0,78817.0,0.31964438]
[1743965531804,0.77935,78826.0,78807.0,0.1935]
[1743965531992,0.1891,78825.0,78807.0,0.1935]
[1743965532197,0.19022001,78825.0,78820.0,0.18987958]
[1743965532398,0.00112001,78825.0,78821.0,0.18]
[1743965532692,0.00112001,78825.0,78822.0,0.38354163]
[1743965533100,0.05775,78823.0,78822.0,0.31690976]
[1743965533401,0.05883,78823.0,78819.0,0.00663436]
[1743965533610,0.05775,78820.0,78815.0,0.00019029]
[1743965533800,0.05775,78820.0,78796.0,0.1979]
[1743965533801,0.05775,78807.0,78796.0,0.1979]
[1743965534103,0.75935,78803.0,78774.0,0.3608]
[1743965534304,0.75935,78803.0,78792.0,0.1979]
[1743965534499,1.09619028,78803.0,78802.0,0.13028373]
[1743965534705,1.09727028,78803.0,78802.0,0.25718003]
[1743965535392,1.09727028,78803.0,78795.0,0.00019029]
[1743965535597,0.05775,78775.0,78761.0,0.1979]
[1743965535905,0.7216,78762.0,78719.0,0.00190565]
[1743965536104,0.05775,78737.0,78736.0,0.48549641]
[1743965536405,0.05775,78737.0,78736.0,0.48562947]
[1743965536591,0.39459028,78737.0,78736.0,0.79836075]
[1743965537200,0.54567028,78737.0,78736.0,0.79836075]
[1743965537402,0.39567028,78737.0,78736.0,0.79836075]
[1743965537704,0.39567028,78737.0,78736.0,0.73500224]
[1743965538103,0.00108,78737.0,78736.0,0.73500224]
[1743965538306,0.00019043,78744.0,78736.0,1.24580224]
[1743965538498,0.3608,78758.0,78736.0,1.0214873]
[1743965538701,0.3608,78770.0,78745.0,0.002]
[1743965538905,0.05775,78765.0,78746.0,0.1813]
[1743965539103,0.58909028,78769.0,78746.0,0.50794398]
[1743965539313,0.3608,78770.0,78760.0,0.3608]
[1743965539506,0.3608,78780.0,78765.0,0.3608]
[1743965539716,0.00019043,78773.0,78765.0,0.3608]
[1743965540012,0.36099043,78773.0,78766.0,0.31843251]
[1743965540205,0.39459028,78771.0,78766.0,0.31907251]
[1743965540507,0.05775,78767.0,78766.0,0.00064]
[1743965540702,0.3608,78769.0,78767.0,0.19145726]
[1743965540897,0.005,78765.0,78761.0,0.00015282]
[1743965541107,0.41839718,78762.0,78757.0,0.00019043]
[1743965541308,0.3608,78758.0,78731.0,0.1976]
[1743965541512,0.77900675,78737.0,78736.0,0.00572]
[1743965541699,0.77900675,78737.0,78736.0,0.005]
[1743965541904,1.11480704,78737.0,78736.0,0.19009783]
[1743965542103,1.11480704,78737.0,78736.0,0.55718034]
[1743965542409,0.87256001,78737.0,78721.0,0.19009783]
[1743965542612,0.05740675,78712.0,78702.0,0.1861]
[1743965542812,0.42048901,78712.0,78702.0,0.1861]
[1743965543111,0.56414921,78712.0,78711.0,0.19205516]
[1743965543408,0.71643106,78712.0,78711.0,0.31978105]
[1743965543808,0.71643106,78712.0,78711.0,0.25642254]
[1743965544004,0.15348186,78712.0,78711.0,0.05427334]
[1743965544208,0.72388185,78712.0,78711.0,0.05427334]
[1743965544414,0.72532196,78712.0,78711.0,0.24810436]
[1743965544604,0.72304,78712.0,78711.0,0.53882436]
[1743965544914,0.72532212,78712.0,78711.0,0.53882436]
[1743965545115,0.72304,78712.0,78711.0,0.53882436]
[1743965545605,0.71304,78712.0,78711.0,0.53882436]
[1743965545805,0.71404,78712.0,78711.0,0.54282436]
[1743965546009,0.71632162,78712.0,78711.0,0.54282436]
[1743965546209,0.71404,78712.0,78711.0,0.54282436]
[1743965546816,0.71404,78712.0,78711.0,0.47946585]
[1743965547017,0.71404,78712.0,78711.0,1.00651208]
[1743965547614,0.0004,78736.0,78711.0,1.15651208]
[1743965547615,0.3608,78730.0,78711.0,1.15651208]
[1743965547914,0.0004,78736.0,78729.0,0.3608]
[1743965548116,0.3608,78750.0,78730.0,0.3827]
[1743965548304,0.36176001,78750.0,78743.0,0.3608]
[1743965548504,0.3608,78759.0,78744.0,0.3768]
[1743965548706,0.3608,78766.0,78756.0,0.3608]
[1743965548908,0.00019057,78759.0,78757.0,0.1859]
[1743965549104,0.00012482,78784.0,78758.0,0.00011166]
[1743965549311,0.00012482,78784.0,78764.0,0.3608]
[1743965549514,0.00012482,78784.0,78764.0,1.1408]
[1743965549709,0.36092482,78784.0,78765.0,0.25531976]
[1743965549916,0.3608,78775.0,78766.0,0.1842]
[1743965550118,0.00228368,78774.0,78766.0,0.5042]
[1743965550419,0.36099044,78782.0,78767.0,0.18948749]
[1743965550715,0.3608,78768.0,78767.0,1.02707856]
[1743965550923,0.00068,78768.0,78767.0,0.59707856]
[1743965551117,0.51308314,78768.0,78747.0,0.00063494]
[1743965551312,0.51308314,78768.0,78747.0,0.23063494]
[1743965551313,0.3608,78753.0,78747.0,0.23063494]
[1743965551523,0.00228314,78752.0,78749.0,0.18920044]
[1743965551718,0.3608,78753.0,78749.0,0.46992044]
[1743965552020,0.36168001,78753.0,78750.0,0.37485103]
[1743965552221,0.3638,78768.0,78751.0,0.3609124]
[1743965552420,0.3638,78768.0,78751.0,0.9345524]
[1743965552421,0.00019044,78759.0,78751.0,0.9345524]
[1743965552616,0.00019044,78759.0,78752.0,0.55145103]
[1743965552815,0.00019044,78759.0,78752.0,1.03873252]
[1743965553022,0.00019044,78759.0,78752.0,1.16571422]
[1743965553212,0.003,78768.0,78758.0,0.3608]
[1743965553419,0.003,78768.0,78759.0,0.1944]
[1743965553614,0.003,78768.0,78760.0,0.193]
[1743965553917,0.04237309,78807.0,78760.0,0.78061525]
[1743965554126,0.3608,78790.0,78770.0,0.3608]
[1743965554311,0.00228431,78783.0,78771.0,0.3872]
[1743965554515,0.00012482,78784.0,78782.0,0.3608]
[1743965554729,0.00076482,78784.0,78783.0,0.3872]
[1743965555019,0.00012482,78784.0,78783.0,0.52032316]
[1743965555319,0.36092482,78784.0,78783.0,0.52032316]
[1743965555515,0.51656482,78784.0,78783.0,0.64727182]
[1743965555819,0.36756482,78784.0,78783.0,0.58391331]
[1743965556024,0.00676482,78784.0,78783.0,0.58391331]
[1743965556319,0.15676482,78784.0,78783.0,0.58391331]
[1743965556523,0.00676482,78784.0,78783.0,0.58391331]
[1743965557320,0.00019044,78785.0,78783.0,0.58391331]
[1743965557518,0.3612,78808.0,78784.0,0.3736]
[1743965557718,0.1071,78807.0,78796.0,0.3608]
[1743965557915,0.00064,78807.0,78797.0,0.3736]
[1743965558119,0.3608,78820.0,78804.0,0.3608]
[1743965558314,0.36192001,78820.0,78813.0,0.3608]
[1743965558619,0.00112001,78820.0,78814.0,0.5640412]
[1743965558830,0.3608,78834.0,78814.0,1.04864692]
[1743965559011,0.36216,78834.0,78826.0,0.3608]
[1743965559322,0.36364,78834.0,78827.0,0.1867]
[1743965559519,0.3612,78844.0,78833.0,0.3608]
[1743965559720,0.0004,78844.0,78842.0,0.3608]
[1743965560021,0.0004,78844.0,78843.0,0.37735151]
[1743965560326,0.00019032,78851.0,78843.0,1.24614488]
[1743965560820,0.00226583,78850.0,78843.0,0.65944488]
[1743965561020,0.3608,78845.0,78843.0,0.58944488]
[1743965561220,0.00226544,78844.0,78843.0,0.58944488]
[1743965561421,0.1705,78844.0,78843.0,0.58944488]
[1743965561622,0.32276548,78844.0,78843.0,0.58944488]
[1743965562024,0.3608,78845.0,78843.0,0.52608637]
[1743965562326,0.5108,78845.0,78843.0,0.52608637]
[1743965562525,0.3608,78845.0,78843.0,0.52608637]
[1743965562715,0.3608,78848.0,78843.0,0.52608637]
[1743965562915,0.3608,78848.0,78844.0,0.3891]
[1743965563125,0.00226594,78847.0,78844.0,0.7109]
[1743965563317,0.00226594,78846.0,78844.0,0.3218]
[1743965563522,0.00226594,78845.0,78844.0,0.28483193]
[1743965563722,0.1704,78846.0,78845.0,0.19015978]
[1743965563924,0.1704,78846.0,78845.0,0.30807032]
[1743965564424,0.001,78846.0,78770.0,0.005]
[1743965564625,0.001,78846.0,78816.0,0.3608]
[1743965564626,0.3608,78828.0,78816.0,0.3608]
[1743965564837,0.005,78825.0,78816.0,0.65088]
[1743965565130,0.00588001,78825.0,78817.0,0.19001645]
[1743965565421,0.00588001,78825.0,78818.0,0.00011059]
[1743965565422,0.3608,78823.0,78818.0,0.00011059]
[1743965565625,0.36176001,78823.0,78818.0,0.72103059]
[1743965565830,0.36176001,78823.0,78819.0,0.08173188]
[1743965566015,0.36176001,78823.0,78819.0,0.90956162]
[1743965566526,0.3608,78821.0,78819.0,0.90956162]
[1743965566724,0.7226,78821.0,78819.0,0.49956162]
[1743965566921,0.7226,78821.0,78819.0,0.82956162]
[1743965567320,0.7226,78821.0,78819.0,0.84056162]
[1743965567722,0.7226,78821.0,78819.0,0.49056162]
[1743965567929,0.8726,78821.0,78819.0,0.42580311]
[1743965568120,0.7226,78821.0,78819.0,0.42580311]
[1743965568320,0.7226,78821.0,78820.0,0.1948]
[1743965568623,0.7226,78821.0,78820.0,0.43568]
[1743965568821,0.7226,78821.0,78820.0,0.62575475]
[1743965569022,0.7226,78821.0,78820.0,0.7526261]
[1743965569222,0.7226,78821.0,78820.0,0.5578261]
[1743965569729,0.7276,78821.0,78820.0,0.5608261]
[1743965569926,0.7276,78821.0,78820.0,0.5668261]
[1743965570528,0.005,78781.0,78757.0,0.3608]
[1743965570737,0.005,78772.0,78757.0,0.3608]
[1743965570925,0.005,78772.0,78770.0,0.1927]
[1743965571237,0.3608,78771.0,78770.0,0.57885447]
[1743965571531,0.3608,78771.0,78770.0,0.78881915]
[1743965571734,0.3608,78771.0,78770.0,1.36576942]
[1743965572319,0.36016535,78771.0,78770.0,1.36576942]
[1743965572723,0.00519032,78778.0,78770.0,1.51576942]
[1743965572924,0.00015828,78786.0,78777.0,0.3608]
[1743965573123,0.3608,78788.0,78778.0,0.1998]
[1743965573330,0.3608,78788.0,78778.0,1.06950481]
[1743965573729,0.3608,78788.0,78779.0,0.12693093]
[1743965573925,0.3608,78780.0,78779.0,0.74693093]
[1743965574221,0.3608,78780.0,78779.0,1.06652837]
[1743965575026,0.36144,78780.0,78779.0,1.06716837]
[1743965576237,0.36244,78780.0,78779.0,1.06716837]
[1743965576533,0.06244,78780.0,78779.0,1.06716837]
[1743965576733,0.001,78780.0,78779.0,1.42796837]
[1743965577128,0.001,78780.0,78779.0,1.36460986]
[1743965577734,0.007,78780.0,78779.0,1.36460986]
[1743965577927,0.007,78780.0,78779.0,1.00380986]
[1743965578435,0.00010996,78790.0,78779.0,1.00980986]
[1743965578635,0.00010996,78790.0,78780.0,0.1969]
[1743965578833,0.00010996,78790.0,78780.0,0.93762]
[1743965579037,0.00010996,78790.0,78781.0,0.19049659]
[1743965579336,0.00010996,78790.0,78781.0,1.04807316]
[1743965579938,0.00010996,78790.0,78785.0,0.3608]
[1743965580139,0.00110996,78790.0,78786.0,0.32564149]
[1743965580443,0.3608,78810.0,78786.0,0.32564149]
[1743965580444,0.3608,78810.0,78786.0,1.74895714]
[1743965580734,0.7794,78819.0,78801.0,0.3608]
[1743965580934,0.0434485,78810.0,78802.0,0.1925]
[1743965581235,0.1979,78818.0,78809.0,0.3608]
[1743965581537,0.00019032,78814.0,78810.0,0.5533]
[1743965581733,0.00019032,78814.0,78810.0,1.14172927]
[1743965581935,0.04319317,78814.0,78810.0,0.95002927]
[1743965582233,0.3608,78812.0,78810.0,0.12]
[1743965582440,0.38676667,78811.0,78810.0,0.08419838]
[1743965582833,0.53676651,78811.0,78783.0,0.00063465]
[1743965583036,0.3608,78788.0,78783.0,0.21063465]
[1743965583235,0.4186,78787.0,78784.0,0.31954113]
[1743965583435,0.04220285,78814.0,78785.0,0.1922]
[1743965583632,0.00019032,78793.0,78785.0,0.9122]
[1743965583843,0.00019032,78793.0,78786.0,0.18973561]
[1743965584036,0.00019032,78793.0,78786.0,1.03666251]
[1743965584343,0.00019032,78793.0,78786.0,1.03866251]
[1743965584637,0.00019032,78793.0,78786.0,1.03666251]
[1743965585132,0.00119032,78793.0,78786.0,1.03666251]
[1743965585328,0.3608,78816.0,78786.0,1.18666251]
[1743965585641,0.3608,78816.0,78791.0,0.3608]
[1743965585835,0.3608,78823.0,78808.0,0.3608]
[1743965586032,0.3608,78823.0,78809.0,0.196]
[1743965586227,0.3608,78830.0,78822.0,0.29744149]
[1743965586437,0.3608,78830.0,78823.0,0.196]
[1743965586735,0.3608,78830.0,78823.0,1.0751013]
[1743965586936,0.3608,78830.0,78824.0,0.12687779]
[1743965587139,0.3608,78830.0,78824.0,1.21767779]
[1743965587335,0.3608,78830.0,78825.0,0.3859737]
[1743965587535,0.3608,78830.0,78825.0,1.1059737]
[1743965587738,0.3608,78830.0,78825.0,0.6866137]
[1743965587937,0.00100889,78826.0,78825.0,1.163477]
[1743965588245,0.00100889,78826.0,78825.0,0.967477]
[1743965588640,0.00100889,78826.0,78825.0,0.597477]
[1743965589031,0.00100889,78826.0,78825.0,0.727477]
[1743965589235,0.00100889,78826.0,78825.0,0.66411849]
[1743965589441,1e-08,78826.0,78825.0,0.66411849]
[1743965589744,0.3608,78830.0,78825.0,1.03581849]
[1743965589930,0.36164,78830.0,78825.0,1.03581849]
[1743965590845,0.51164,78830.0,78825.0,0.53411849]
[1743965591030,0.5043,78829.0,78825.0,0.48218223]
[1743965591231,0.50518,78829.0,78825.0,0.21]
[1743965591439,0.65518,78829.0,78826.0,0.18998525]
[1743965591746,0.65518,78829.0,78826.0,0.63752453]
[1743965591747,0.1185,78828.0,78826.0,0.63752453]
[1743965592043,0.1185,78827.0,78826.0,0.63752453]
[1743965592234,0.31494,78827.0,78826.0,0.38418077]
[1743965592430,0.31494,78827.0,78826.0,0.57512661]
[1743965593041,0.46494,78827.0,78826.0,0.57512661]
[1743965593345,0.46494,78827.0,78826.0,0.53392661]
[1743965593638,0.46494,78827.0,78826.0,0.29]
[1743965593839,0.46494,78827.0,78826.0,0.60685823]
[1743965594037,0.46494,78827.0,78826.0,0.56625824]
[1743965594239,0.46494,78827.0,78786.0,0.7808]
[1743965594240,0.3608,78817.0,78786.0,0.37410527]
[1743965594433,0.3608,78791.0,78787.0,0.2403155]
[1743965594647,0.11864851,78790.0,78787.0,0.63007037]
[1743965594842,0.11972851,78790.0,78787.0,0.7569715]
[1743965595142,0.11972851,78790.0,78788.0,0.00012524]
[1743965595338,0.11972851,78790.0,78788.0,0.29]
[1743965595543,0.36099032,78809.0,78789.0,0.19002361]
[1743965595747,0.36099032,78809.0,78789.0,1.07694488]
[1743965595946,0.3608,78798.0,78789.0,1.43774488]
[1743965596250,0.36099032,78809.0,78789.0,1.24772127]
[1743965596443,0.36099032,78809.0,78790.0,0.19089274]
[1743965596747,0.36099032,78809.0,78798.0,0.3608]
[1743965596950,0.3608,78801.0,78798.0,0.77]
[1743965597248,0.3608,78801.0,78799.0,0.1893528]
[1743965597440,0.36099032,78809.0,78799.0,0.9693528]
[1743965597637,0.00019032,78809.0,78808.0,0.3608]
[1743965597841,0.00010777,78816.0,78808.0,1.1408]
[1743965598040,0.47005176,78833.0,78815.0,0.3608]
[1743965598240,0.47005176,78833.0,78823.0,0.3608]
[1743965598441,0.47005176,78833.0,78823.0,1.0908]
[1743965598643,0.47005176,78833.0,78824.0,0.38461944]
[1743965598845,0.47005176,78833.0,78824.0,1.19147791]
[1743965599151,0.00019032,78836.0,78832.0,0.3608]
[1743965599345,0.00019032,78836.0,78835.0,0.3608]
[1743965599551,0.00019032,78836.0,78835.0,1.1208]
[1743965599759,0.21704285,78854.0,78835.0,1.58819912]
[1743965600047,0.3608,78878.0,78845.0,0.06544338]
[1743965600247,0.00253578,78871.0,78863.0,0.3608]
[1743965600443,0.00253578,78871.0,78863.0,1.03148]
[1743965600444,0.00321578,78871.0,78863.0,1.03148]
[1743965600752,0.3608,78885.0,78870.0,0.3608]
[1743965600948,0.00018904,78875.0,78871.0,0.00011382]
[1743965601254,0.00018904,78875.0,78871.0,0.88936204]
[1743965601449,0.00018904,78875.0,78872.0,0.12679574]
[1743965601641,0.00018904,78875.0,78872.0,0.85679574]
[1743965601843,0.0004,78880.0,78873.0,0.18924822]
[1743965602043,0.14613762,78891.0,78879.0,0.3608]
[1743965602244,0.3608,78923.0,78890.0,0.3608]
[1743965602444,0.3608,78923.0,78910.0,0.3608]
[1743965602649,0.3608,78915.0,78910.0,0.26]
[1743965602954,0.3685,78914.0,78911.0,0.18953035]
[1743965603251,0.5185,78914.0,78912.0,0.00011653]
[1743965603550,9.511e-05,78913.0,78912.0,0.23011653]
[1743965603954,9.511e-05,78913.0,78912.0,0.4199952]
[1743965604155,9.511e-05,78913.0,78912.0,0.54671703]
[1743965604354,9.511e-05,78913.0,78912.0,0.48335852]
[1743965604555,0.18679511,78913.0,78912.0,0.48335852]
[1743965605058,9.511e-05,78913.0,78912.0,0.48335852]
[1743965605349,9.511e-05,78913.0,78912.0,0.48351599]
[1743965605649,0.18679511,78913.0,78912.0,0.48351599]
[1743965605855,0.18779511,78913.0,78912.0,0.48351599]
[1743965606757,0.00109511,78913.0,78912.0,0.48351599]
[1743965606954,0.00181511,78913.0,78912.0,0.48423599]
[1743965607153,0.00181511,78913.0,78912.0,0.94423599]
[1743965607352,0.00109511,78913.0,78912.0,0.94423599]
[1743965607557,0.00173511,78913.0,78912.0,0.88087748]
[1743965607849,0.3608,78925.0,78912.0,0.88087748]
[1743965608055,0.732,78947.0,78924.0,0.3608]
[1743965608251,0.00064,78933.0,78931.0,0.3608]
[1743965608449,0.3712,78947.0,78931.0,0.3608]
[1743965608450,0.1845,78947.0,78932.0,0.3886]
[1743965608650,0.00068,78947.0,78938.0,0.3608]
[1743965608856,0.00068,78947.0,78938.0,0.72064]
[1743965609055,0.00076,78947.0,78939.0,0.18963181]
[1743965609252,0.0004,78952.0,78940.0,0.3767]
[1743965609449,0.00112,78952.0,78940.0,1.08742]
[1743965609648,0.00112,78952.0,78941.0,0.19082249]
[1743965609864,0.00112,78952.0,78941.0,0.98813135]
[1743965610053,0.00112,78952.0,78949.0,0.3608]
[1743965610255,0.00112,78952.0,78950.0,0.3767]
[1743965610455,0.00112,78952.0,78950.0,1.25388394]
[1743965610656,0.0004,78952.0,78951.0,0.12666084]
[1743965610850,0.0004,78952.0,78951.0,0.87730084]
[1743965611060,9.92e-05,78955.0,78951.0,1.06712329]
[1743965611261,9.92e-05,78955.0,78952.0,0.1821]
[1743965611466,9.92e-05,78955.0,78952.0,0.2]
[1743965611757,9.92e-05,78955.0,78953.0,0.19008465]
[1743965611960,0.0007392,78955.0,78953.0,0.78948147]
[1743965612152,9.92e-05,78955.0,78953.0,0.78948147]
[1743965612348,9.92e-05,78955.0,78954.0,0.00016239]
[1743965612554,9.92e-05,78955.0,78954.0,0.46106652]
[1743965612753,9.92e-05,78955.0,78954.0,0.64316652]
[1743965612956,9.92e-05,78955.0,78954.0,0.76982254]
[1743965613151,0.0008192,78955.0,78954.0,0.58772254]
[1743965613556,0.0008192,78955.0,78954.0,0.52436403]
[1743965614460,0.0008192,78955.0,78954.0,0.52451112]
[1743965614657,0.0008192,78955.0,78954.0,0.88531112]
[1743965614862,9.92e-05,78955.0,78954.0,0.88531112]
[1743965615062,9.92e-05,78955.0,78954.0,0.52451112]
[1743965615363,0.3608992,78955.0,78954.0,0.51251112]
[1743965615663,0.3615392,78955.0,78954.0,0.51251112]
[1743965615856,0.5115392,78955.0,78927.0,0.36143349]
[1743965616063,0.3608,78942.0,78932.0,0.47091007]
[1743965616355,0.36164,78942.0,78936.0,0.19100444]
[1743965616560,0.191,78941.0,78937.0,0.12664149]
[1743965616758,0.191,78941.0,78937.0,0.40732149]
[1743965616953,0.19184,78941.0,78938.0,0.32580009]
[1743965617158,0.191,78941.0,78938.0,0.62644009]
[1743965617363,0.191,78941.0,78939.0,0.18910454]
[1743965617553,0.1945,78954.0,78939.0,0.42982454]
[1743965617752,0.00092,78954.0,78939.0,0.42982454]
[1743965617959,0.00092,78954.0,78943.0,0.3608]
[1743965618256,0.00092,78954.0,78943.0,1.10144]
[1743965618461,0.00092,78954.0,78944.0,0.1893054]
[1743965618664,0.19192,78954.0,78944.0,0.96686469]
[1743965619062,0.19192,78954.0,78944.0,0.77755929]
[1743965619259,0.00092,78954.0,78944.0,0.77755929]
[1743965619458,0.00092,78954.0,78945.0,0.19033264]
[1743965619658,0.00092,78954.0,78948.0,0.3608]
[1743965619858,0.3608992,78955.0,78948.0,1.10144]
[1743965620162,9.92e-05,78955.0,78949.0,0.67779668]
[1743965620355,9.92e-05,78955.0,78949.0,1.42843668]
[1743965620763,9.92e-05,78955.0,78949.0,1.57843668]
[1743965621664,9.92e-05,78955.0,78949.0,1.64388006]
[1743965622063,9.92e-05,78955.0,78949.0,1.57843668]
[1743965622270,9.92e-05,78955.0,78949.0,1.58788201]
[1743965622763,9.92e-05,78955.0,78949.0,1.5245235]
[1743965623966,9.92e-05,78955.0,78949.0,1.3745235]
[1743965624363,9.92e-05,78955.0,78949.0,1.36507817]
[1743965625063,9.92e-05,78955.0,78949.0,1.51507817]
[1743965625766,9.92e-05,78955.0,78949.0,1.45171966]
[1743965626070,9.92e-05,78955.0,78949.0,1.45771966]
[1743965626563,9.92e-05,78955.0,78949.0,1.46371966]
[1743965626767,9.92e-05,78955.0,78949.0,1.31371966]
[1743965627766,9.92e-05,78955.0,78949.0,0.95291966]